[Event "VIII Open Semana Santa-B 2024"]
[Site "San Vicente del Raspeig"]
[Date "2024.03.29"]
[Round "5.6"]
[White "Pardo Ruiz, Beatriz"]
[Black "Pastor Marti, Jaume"]
[Result "1-0"]
[ECO "B13"]
[WhiteElo "1757"]
[BlackElo "1822"]
[Annotator "NA RC"]
[PlyCount "45"]
[EventDate "2024.03.27"]
[EventType "swiss"]
[EventCountry "ESP"]
[SourceTitle "playchess.com"]
[Source "ChessBase"]
[SourceQuality "1"]
[TimeControl "5400+30"]

1. e4 {[%emt 0:00:04]} c6 {[%emt 0:00:08]} 2. d4 {[%emt 0:00:09]} d5 {[%emt 0:00:09]} 3. exd5 {[%emt 0:00:06]} cxd5 {[%emt 0:00:10]} 4. Bd3 {[%emt 0:00:18]} Nc6 {[%emt 0:00:11]} 5. c3 {[%emt 0:00:05]} Nf6 {[%emt 0:00:48]} 6. h3 {[%emt 0:00:03]} e5 {[%emt 0:00:26]} 7. dxe5 {[%emt 0:02:09]} Nxe5 {[%emt 0:00:12]} 8. Bc2 {[%emt 1:31:36]} h6 {[%emt 0:11:29]} 9. Ne2 {[%emt 0:00:00]} Bd6 {[%emt 0:05:00]} 10. O-O {[%emt 0:00:00]} O-O {[%emt 0:00:30]} 11. Bf4 {[%emt 0:00:00]} Qb6 {[%emt 0:06:26]} 12. Bb3 {[%emt 0:00:00]} Be6 {[%emt 0:01:52]} 13. Nd4 {[%emt 0:00:00]} Ng6 {[%emt 0:14:01]} 14. Bxd6 {[%emt 0:00:00]} Qxd6 {[%emt 0:00:35]} 15. Nd2 {[%emt 0:00:00]} Rad8 {[%emt 0:02:47]} 16. Re1 {[%emt 0:00:00]} a6 {[%emt 0:02:42]} 17. Qc2 {[%emt 0:00:00]} Bd7 {[%emt 0:07:36]} 18. Rad1 {[%emt 0:05:00]} Rfe8 {[%emt 0:07:27]} 19. N2f3 {[%emt 0:00:00]} Rxe1+ {[%emt 0:04:23]} 20. Rxe1 {[%emt 0:00:00]} b5 {[%emt 0:01:29]} 21. a3 {[%emt 0:00:00]} a5 {[%emt 0:02:01]} 22. Qd2 {[%emt 0:00:00]} Ne4 {[%emt 0:05:22]} 23. Qc2 {[%emt 0:00:00]} 1-0

[Event "VIII Open Semana Santa-B 2024"]
[Site "San Vicente del Raspeig"]
[Date "2024.03.29"]
[Round "5.7"]
[White "Galiana Fernandez, Hector"]
[Black "Garcia Ruano, Juan Carlos"]
[Result "0-1"]
[ECO "B31"]
[WhiteElo "1754"]
[BlackElo "1885"]
[Annotator "NA RC"]
[PlyCount "52"]
[EventDate "2024.03.27"]
[EventType "swiss"]
[EventCountry "ESP"]
[SourceTitle "playchess.com"]
[Source "ChessBase"]
[SourceQuality "1"]
[TimeControl "5400+30"]

1. e4 {[%emt 0:00:14]} c5 {[%emt 0:00:27]} 2. Nf3 {[%emt 0:00:14]} Nc6 {[%emt 0:00:05]} 3. Bb5 {[%emt 0:00:20]} g6 {[%emt 0:00:24]} 4. c3 {[%emt 0:01:13]} Bg7 {[%emt 0:00:35]} 5. d4 {[%emt 0:00:41]} cxd4 {[%emt 0:00:28]} 6. cxd4 {[%emt 0:00:12]} Qb6 {[%emt 0:00:32]} 7. Bxc6 {[%emt 0:01:54]} bxc6 {[%emt 0:00:59]} 8. Nc3 {[%emt 0:01:43]} Ba6 {[%emt 0:00:32]} 9. Na4 {[%emt 0:09:38]} Qb5 {[%emt 0:06:38]} 10. Nc5 {[%emt 0:02:35]} d6 {[%emt 0:02:09]} 11. Nxa6 {[%emt 0:01:18]} Qxa6 {[%emt 0:00:06]} 12. Qc2 {[%emt 0:03:51]} Nf6 {[%emt 0:01:09]} 13. Bd2 {[%emt 0:02:07]} O-O {[%emt 0:00:34]} 14. h4 {[%emt 0:04:44]} d5 {[%emt 0:02:28]} 15. e5 {[%emt 0:07:02]} Ne4 {[%emt 0:00:07]} 16. Ng5 {[%emt 0:05:02]} Nxd2 {[%emt 0:00:34]} 17. Qxd2 {[%emt 0:00:35]} c5 {[%emt 0:01:43]} 18. h5 {[%emt 0:01:01]} f6 {[%emt 0:07:02]} 19. hxg6 {[%emt 0:03:20]} fxg5 {[%emt 0:00:13]} 20. gxh7+ {[%emt 0:00:39]} Kh8 {[%emt 0:00:07]} 21. Qxg5 {[%emt 0:00:37]} cxd4 {[%emt 0:00:30]} 22. f4 {[%emt 0:01:28]} Qd3 {[%emt 0:00:44]} 23. Rh3 {[%emt 0:01:14]} Qe4+ {[%emt 0:00:21]} 24. Kd1 {[%emt 0:00:49]} Rxf4 {[%emt 0:01:07]} 25. Rg3 {[%emt 0:00:57]} Rf1+ {[%emt 0:00:17]} 26. Kd2 {[%emt 0:00:06]} Rf2+ {[%emt 0:00:05]} 0-1

[Event "VIII Open Semana Santa-B 2024"]
[Site "San Vicente del Raspeig"]
[Date "2024.03.29"]
[Round "5.8"]
[White "Perea Sardon, Francisco Javier"]
[Black "Carretero Ajo, Jesus"]
[Result "0-1"]
[ECO "D04"]
[WhiteElo "1749"]
[BlackElo "1876"]
[Annotator "NA RC"]
[PlyCount "50"]
[EventDate "2024.03.27"]
[EventType "swiss"]
[EventCountry "ESP"]
[SourceTitle "playchess.com"]
[Source "ChessBase"]
[SourceQuality "1"]
[TimeControl "5400+30"]

1. d4 {[%emt 0:00:03]} d5 {[%emt 0:00:10]} 2. Nf3 {[%emt 0:00:04]} Nf6 {[%emt 0:00:12]} 3. e3 {[%emt 0:00:05]} c5 {[%emt 0:00:09]} 4. b3 {[%emt 0:00:23]} Nc6 {[%emt 0:01:58]} 5. Bb2 {[%emt 0:00:44]} cxd4 {[%emt 0:00:55]} 6. exd4 {[%emt 0:00:13]} Bf5 {[%emt 0:01:05]} 7. a3 {[%emt 0:00:23]} e6 {[%emt 0:01:40]} 8. Nh4 {[%emt 0:02:12]} Bg4 {[%emt 0:02:41]} 9. Nf3 {[%emt 0:01:07]} Qb6 {[%emt 0:02:21]} 10. Be2 {[%emt 0:02:58]} Be7 {[%emt 0:03:07]} 11. O-O {[%emt 0:00:29]} h6 {[%emt 0:00:21]} 12. h3 {[%emt 0:01:26]} Bh5 {[%emt 0:00:12]} 13. Re1 {[%emt 0:04:45]} O-O {[%emt 0:00:14]} 14. Nbd2 {[%emt 0:01:41]} Rac8 {[%emt 1:22:25]} 15. Bd3 {[%emt 1:21:27]} Qc7 {[%emt 0:00:30]} 16. g4 {[%emt 0:00:00]} Bg6 {[%emt 0:00:00]} 17. Bxg6 {[%emt 0:00:00]} fxg6 {[%emt 0:00:00]} 18. Rc1 {[%emt 0:01:30]} Qf4 {[%emt 0:01:30]} 19. Qe2 {[%emt 0:00:00]} Ne4 {[%emt 0:00:00]} 20. Nxe4 {[%emt 0:00:00]} dxe4 {[%emt 0:00:00]} 21. Qxe4 {[%emt 0:00:00]} Qxf3 22. Qxe6+ {[%emt 0:00:00]} Kh7 23. Re2 {[%emt 0:02:30]} Bh4 {[%emt 0:00:00]} 24. d5 {[%emt 0:00:00]} Bxf2+ {[%emt 0:00:00]} 25. Kh2 {[%emt 0:00:00]} Qg3+ {[%emt 0:00:00]} 0-1

[Event "VIII Open Semana Santa-B 2024"]
[Site "San Vicente del Raspeig"]
[Date "2024.03.30"]
[Round "6.1"]
[White "Amoros Moran, Jose Joaquin"]
[Black "Herrera Pezo, Enoch"]
[Result "1-0"]
[ECO "A08"]
[WhiteElo "1883"]
[BlackElo "1831"]
[Annotator "NA RC COMBH"]
[PlyCount "77"]
[EventDate "2024.03.27"]
[EventType "swiss"]
[EventCountry "ESP"]
[SourceTitle "playchess.com"]
[Source "ChessBase"]
[SourceQuality "1"]
[TimeControl "5400+30"]

1. e4 {[%emt 0:06:53]} c5 {[%emt 0:00:50]} 2. Nf3 {[%emt 0:00:06]} e6 {[%emt 0:02:22]} 3. Qe2 {[%emt 0:01:10]} Nc6 {[%emt 0:01:17]} 4. g3 {[%emt 0:00:12]} Nge7 {[%emt 0:02:43]} 5. Bg2 {[%emt 0:00:20]} g6 {[%emt 0:02:10]} 6. O-O {[%emt 0:00:17]} Bg7 {[%emt 0:00:08]} 7. c3 {[%emt 0:00:16]} O-O {[%emt 0:00:16]} 8. d3 {[%emt 0:00:17]} d5 {[%emt 0:01:15]} 9. e5 {[%emt 0:03:29]} d4 {[%emt 0:03:16]} 10. c4 {[%emt 0:00:32]} Rb8 {[%emt 0:02:16]} 11. a4 {[%emt 0:08:11]} a6 {[%emt 0:05:14]} 12. Bg5 {[%emt 0:00:17]} Qc7 {[%emt 0:03:21]} 13. Bf4 {[%emt 0:02:23]} Bd7 {[%emt 0:01:09]} 14. Nbd2 {[%emt 0:02:06]} b5 {[%emt 0:00:46]} 15. axb5 {[%emt 0:01:08]} axb5 {[%emt 0:00:09]} 16. b3 {[%emt 0:00:07]} h6 {[%emt 0:03:09]} 17. h4 {[%emt 0:00:16]} Na5 {[%emt 0:03:57]} 18. Rfb1 {[%emt 0:02:53]} bxc4 {[%emt 0:06:18]} 19. bxc4 {[%emt 0:00:17]} Rxb1+ {[%emt 0:00:10]} 20. Rxb1 {[%emt 0:00:33]} Bc6 {[%emt 0:03:49]} 21. Ne4 {[%emt 0:05:17]} Bxe4 {[%emt 0:00:16]} 22. Qxe4 {[%emt 0:00:30]} Rb8 {[%emt 0:01:06]} 23. Re1 {[%emt 0:16:21]} Nac6 {[%emt 0:03:46]} 24. Nh2 {[%emt 0:02:38]} Rb3 {[%emt 0:07:42]} 25. Ng4 {[%emt 0:02:43]} Kh7 {[%emt 0:05:08]} 26. h5 {[%emt 0:05:02]} Qa5 {[%emt 0:01:51]} 27. hxg6+ {[%emt 0:06:48]} fxg6 {[%emt 0:00:28]} 28. Nf6+ {[%emt 0:02:02]} Kh8 {[%emt 0:00:54]} 29. Bf1 {[%emt 0:07:06]} Bf8 {[%emt 0:08:58]} 30. g4 {[%emt 0:05:10]} Nb4 {[%emt 0:09:26]} 31. Qh1 {[%emt 0:05:23]} Ng8 {[%emt 0:00:44]} 32. Qb7 {[%emt 0:05:42]} Bg7 {[%emt 0:05:11]} 33. Qc8 {[%emt 0:01:24]} Bxf6 {[%emt 0:02:34]} 34. exf6 {[%emt 0:00:01]} Qa7 {[%emt 0:00:43]} 35. Qe8 {[%emt 0:03:52]} Kh7 {[%emt 0:01:44]} 36. f7 {[%emt 0:01:31]} Nf6 {[%emt 0:00:09]} 37. f8=Q {[%emt 0:00:37]} Nxe8 {[%emt 0:00:21]} 38. Qxe8 {[%emt 0:00:06]} Nc2 {[%emt 0:10:15]} 39. Rxe6 {[%emt 0:01:30]} 1-0

[Event "VIII Open Semana Santa-B 2024"]
[Site "San Vicente del Raspeig"]
[Date "2024.03.30"]
[Round "6.2"]
[White "Zhuravlev, Matvey R"]
[Black "Torralba Brosa, Marc"]
[Result "1-0"]
[ECO "D85"]
[WhiteElo "1774"]
[BlackElo "1869"]
[Annotator "NA RC COMBH"]
[PlyCount "71"]
[EventDate "2024.03.27"]
[EventType "swiss"]
[EventCountry "ESP"]
[SourceTitle "playchess.com"]
[Source "ChessBase"]
[SourceQuality "1"]
[TimeControl "5400+30"]

1. d4 {[%emt 0:00:02]} Nf6 {[%emt 0:07:36]} 2. c4 {[%emt 0:00:16]} g6 {[%emt 0:00:06]} 3. Nc3 {[%emt 0:00:04]} d5 {[%emt 0:00:04]} 4. cxd5 {[%emt 0:00:05]} Nxd5 {[%emt 0:00:06]} 5. e4 {[%emt 0:00:04]} Nxc3 {[%emt 0:00:07]} 6. bxc3 {[%emt 0:00:04]} Bg7 {[%emt 0:00:13]} 7. Nf3 {[%emt 0:00:08]} c5 {[%emt 0:00:07]} 8. Bb5+ {[%emt 0:00:05]} Nc6 {[%emt 0:00:47]} 9. Bxc6+ {[%emt 0:04:34]} bxc6 {[%emt 0:00:06]} 10. O-O {[%emt 0:00:05]} O-O {[%emt 0:00:10]} 11. Qc2 {[%emt 0:00:06]} cxd4 {[%emt 0:05:30]} 12. cxd4 {[%emt 0:00:09]} Bg4 {[%emt 0:01:29]} 13. Ne5 {[%emt 0:00:23]} Bd7 {[%emt 0:08:23]} 14. Be3 {[%emt 0:04:03]} Qc7 {[%emt 0:02:46]} 15. Nxd7 {[%emt 0:01:30]} Qxd7 {[%emt 0:00:14]} 16. Qc5 {[%emt 0:00:52]} Rab8 {[%emt 0:02:02]} 17. a4 {[%emt 0:01:46]} Rb6 {[%emt 0:06:19]} 18. Rac1 {[%emt 0:01:44]} Rfb8 {[%emt 0:02:24]} 19. Rc4 {[%emt 0:21:43]} Rb1 {[%emt 0:03:57]} 20. Rfc1 {[%emt 0:03:51]} e6 {[%emt 0:03:44]} 21. h3 {[%emt 0:06:24]} Rxc1+ {[%emt 0:02:56]} 22. Rxc1 {[%emt 0:00:11]} Rb6 {[%emt 0:00:42]} 23. d5 {[%emt 0:04:08]} exd5 {[%emt 0:02:27]} 24. exd5 {[%emt 0:01:43]} Bf8 {[%emt 0:00:52]} 25. dxc6 {[%emt 0:00:42]} Qc8 {[%emt 0:06:07]} 26. Qd5 {[%emt 0:03:04]} Ra6 {[%emt 0:02:43]} 27. c7 {[%emt 0:00:26]} Bd6 {[%emt 0:00:15]} 28. Bf4 {[%emt 0:00:20]} Be7 {[%emt 0:01:18]} 29. Rd1 {[%emt 0:02:50]} Rxa4 {[%emt 0:01:51]} 30. Qd8+ {[%emt 0:01:55]} Bxd8 {[%emt 0:00:06]} 31. Rxd8+ {[%emt 0:00:19]} Kg7 {[%emt 0:00:18]} 32. Be5+ {[%emt 0:00:20]} f6 {[%emt 0:00:31]} 33. Rxc8 {[%emt 0:00:17]} fxe5 {[%emt 0:00:14]} 34. Rg8+ {[%emt 0:00:03]} Kxg8 {[%emt 0:00:12]} 35. c8=Q+ {[%emt 0:00:05]} Kg7 {[%emt 0:00:11]} 36. Qd7+ {[%emt 0:00:03]} 1-0

[Event "VIII Open Semana Santa-B 2024"]
[Site "San Vicente del Raspeig"]
[Date "2024.03.30"]
[Round "6.3"]
[White "Safir, Iaroslav"]
[Black "Ashton, Alannah"]
[Result "0-1"]
[ECO "D77"]
[WhiteElo "1705"]
[BlackElo "1839"]
[Annotator "NA RC COMBH"]
[PlyCount "82"]
[EventDate "2024.03.27"]
[EventType "swiss"]
[EventCountry "ESP"]
[SourceTitle "playchess.com"]
[Source "ChessBase"]
[SourceQuality "1"]
[TimeControl "5400+30"]

1. Nf3 {[%emt 0:00:12]} Nf6 {[%emt 0:00:14]} 2. g3 {[%emt 0:00:31]} g6 {[%emt 0:00:31]} 3. Bg2 {[%emt 0:00:11]} Bg7 {[%emt 0:00:07]} 4. O-O {[%emt 0:00:17]} O-O {[%emt 0:00:05]} 5. d4 {[%emt 0:00:33]} d5 {[%emt 0:00:38]} 6. c4 {[%emt 0:00:42]} dxc4 {[%emt 0:00:50]} 7. Qa4 {[%emt 0:01:29]} Be6 {[%emt 0:07:17]} 8. Na3 {[%emt 0:03:48]} c6 {[%emt 0:04:32]} 9. Qb4 {[%emt 0:01:04]} b5 {[%emt 0:09:37]} 10. Ng5 {[%emt 0:06:10]} Bf5 {[%emt 0:11:49]} 11. Nxb5 {[%emt 0:02:49]} h6 {[%emt 0:05:09]} 12. e4 {[%emt 0:01:15]} Bg4 {[%emt 0:15:55]} 13. e5 {[%emt 0:01:29]} Nd5 {[%emt 0:03:36]} 14. Bxd5 {[%emt 0:00:35]} cxd5 {[%emt 0:01:01]} 15. h3 {[%emt 0:01:06]} Bd7 {[%emt 0:00:40]} 16. Nf3 {[%emt 0:00:38]} Qb6 {[%emt 0:00:31]} 17. Qxe7 {[%emt 0:05:30]} Bxb5 {[%emt 0:01:58]} 18. Re1 {[%emt 0:00:42]} Qe6 {[%emt 0:01:39]} 19. Qh4 {[%emt 0:00:25]} g5 {[%emt 0:01:34]} 20. Qh5 {[%emt 0:00:17]} Be8 {[%emt 0:02:51]} 21. Qg4 {[%emt 0:04:16]} Qxg4 {[%emt 0:00:34]} 22. hxg4 {[%emt 0:00:02]} Bd7 {[%emt 0:00:27]} 23. Nh2 {[%emt 0:01:36]} Nc6 {[%emt 0:00:35]} 24. Be3 {[%emt 0:00:18]} Nb4 {[%emt 0:01:31]} 25. Rec1 {[%emt 0:00:21]} Nd3 {[%emt 0:01:28]} 26. Rc2 {[%emt 0:00:21]} Ba4 {[%emt 0:01:37]} 27. Rd2 {[%emt 0:00:10]} Rab8 {[%emt 0:01:09]} 28. b3 {[%emt 0:00:24]} Bb5 {[%emt 0:00:58]} 29. bxc4 {[%emt 0:01:03]} dxc4 {[%emt 0:13:27]} 30. f4 {[%emt 0:01:23]} c3 {[%emt 0:02:28]} 31. Rc2 {[%emt 0:00:06]} Rfc8 {[%emt 0:00:59]} 32. a4 {[%emt 0:00:13]} Nb4 {[%emt 0:00:58]} 33. Rcc1 {[%emt 0:00:33]} Ba6 {[%emt 0:02:02]} 34. Ra3 {[%emt 0:00:21]} c2 {[%emt 0:00:28]} 35. Raa1 {[%emt 0:00:42]} Nd3 {[%emt 0:01:38]} 36. Rf1 {[%emt 0:00:27]} Nb2 {[%emt 0:01:13]} 37. Rfc1 {[%emt 0:00:17]} Nc4 {[%emt 0:01:31]} 38. Kf2 {[%emt 0:00:08]} Na5 {[%emt 0:00:45]} 39. Ra2 {[%emt 0:00:15]} Bd3 {[%emt 0:00:17]} 40. Nf3 {[%emt 0:00:33]} Nb3 {[%emt 0:00:22]} 41. Rg1 {[%emt 0:00:43]} c1=Q {[%emt 0:00:25]} 0-1

[Event "VIII Open Semana Santa-B 2024"]
[Site "San Vicente del Raspeig"]
[Date "2024.03.30"]
[Round "6.4"]
[White "Carretero Ajo, Jesus"]
[Black "Pardo Ruiz, Beatriz"]
[Result "1-0"]
[ECO "B22"]
[WhiteElo "1876"]
[BlackElo "1757"]
[Annotator "NA RC COMBH"]
[PlyCount "39"]
[EventDate "2024.03.27"]
[EventType "swiss"]
[EventCountry "ESP"]
[SourceTitle "playchess.com"]
[Source "ChessBase"]
[SourceQuality "1"]
[TimeControl "5400+30"]

1. e4 {[%emt 0:00:06]} c5 {[%emt 0:00:04]} 2. c3 {[%emt 0:00:07]} d5 {[%emt 0:00:08]} 3. exd5 {[%emt 0:00:12]} Qxd5 {[%emt 0:00:08]} 4. d4 {[%emt 0:00:19]} Nf6 {[%emt 0:00:31]} 5. Nf3 {[%emt 0:01:30]} Nc6 {[%emt 0:00:09]} 6. Be2 {[%emt 0:02:44]} cxd4 {[%emt 0:00:20]} 7. cxd4 {[%emt 0:00:42]} e6 {[%emt 0:00:11]} 8. Nc3 {[%emt 0:01:07]} Qd6 {[%emt 0:00:43]} 9. O-O {[%emt 0:00:35]} Be7 {[%emt 0:00:12]} 10. Bc4 {[%emt 0:15:08]} Nb4 {[%emt 0:09:19]} 11. Qe2 {[%emt 0:13:46]} O-O {[%emt 0:04:09]} 12. Bg5 {[%emt 0:03:45]} Nbd5 {[%emt 0:10:28]} 13. Rad1 {[%emt 0:14:12]} a6 {[%emt 0:07:45]} 14. Rfe1 {[%emt 0:01:50]} Bd8 {[%emt 0:01:12]} 15. a4 {[%emt 0:01:54]} b6 {[%emt 1:02:41]} 16. Ne4 {[%emt 0:02:37]} Nxe4 {[%emt 0:00:00]} 17. Qxe4 {[%emt 0:02:48]} f6 {[%emt 0:00:00]} 18. Bc1 {[%emt 0:04:29]} Re8 {[%emt 0:00:00]} 19. Bxd5 {[%emt 0:01:49]} Rb8 {[%emt 0:00:00]} 20. Bf4 {[%emt 0:01:04]} 1-0

[Event "VIII Open Semana Santa-B 2024"]
[Site "San Vicente del Raspeig"]
[Date "2024.03.30"]
[Round "6.5"]
[White "Garcia Ruano, Juan Carlos"]
[Black "Jayawarna, Thisumi"]
[Result "1/2-1/2"]
[ECO "B40"]
[WhiteElo "1885"]
[BlackElo "1774"]
[Annotator "NA RC COMBH"]
[PlyCount "150"]
[EventDate "2024.03.27"]
[EventType "swiss"]
[EventCountry "ESP"]
[SourceTitle "playchess.com"]
[Source "ChessBase"]
[SourceQuality "1"]
[TimeControl "5400+30"]

1. e4 {[%emt 0:00:06]} c5 {[%emt 0:00:07]} 2. Nf3 {[%emt 0:00:06]} e6 {[%emt 0:00:08]} 3. b3 {[%emt 0:03:56]} Nc6 {[%emt 0:03:23]} 4. Bb2 {[%emt 0:00:17]} Qc7 {[%emt 0:02:45]} 5. c4 {[%emt 0:03:24]} a6 {[%emt 0:09:27]} 6. Be2 {[%emt 0:00:33]} Nf6 {[%emt 0:02:42]} 7. Nc3 {[%emt 0:00:58]} Be7 {[%emt 0:01:25]} 8. O-O {[%emt 0:00:15]} O-O {[%emt 0:01:52]} 9. d4 {[%emt 0:00:27]} cxd4 {[%emt 0:04:22]} 10. Nxd4 {[%emt 0:00:12]} Rd8 {[%emt 0:02:09]} 11. Nxc6 {[%emt 0:03:23]} dxc6 {[%emt 0:03:25]} 12. Qc1 {[%emt 0:01:46]} e5 {[%emt 0:04:51]} 13. Ba3 {[%emt 0:02:56]} Bxa3 {[%emt 0:09:00]} 14. Qxa3 {[%emt 0:00:07]} Be6 {[%emt 0:01:40]} 15. Rad1 {[%emt 0:00:26]} Rd4 {[%emt 0:03:32]} 16. f3 {[%emt 0:02:04]} Rad8 {[%emt 0:04:31]} 17. Qc1 {[%emt 0:01:26]} Nh5 {[%emt 0:04:35]} 18. Rxd4 {[%emt 0:06:08]} exd4 {[%emt 0:08:08]} 19. Nb1 {[%emt 0:03:49]} Nf4 {[%emt 0:09:57]} 20. Qd2 {[%emt 0:00:44]} c5 {[%emt 0:04:25]} 21. Bd3 {[%emt 0:00:43]} f6 {[%emt 0:01:52]} 22. g3 {[%emt 0:00:25]} Nxd3 {[%emt 0:01:25]} 23. Qxd3 {[%emt 0:00:08]} Qa5 {[%emt 0:01:10]} 24. Qd2 {[%emt 0:00:23]} Qxd2 {[%emt 0:01:31]} 25. Nxd2 {[%emt 0:00:02]} b5 {[%emt 0:02:06]} 26. Rc1 {[%emt 0:01:28]} b4 {[%emt 0:02:40]} 27. Kf2 {[%emt 0:00:26]} Kf7 {[%emt 0:01:08]} 28. Ke2 {[%emt 0:01:31]} Ke7 {[%emt 0:01:51]} 29. h4 {[%emt 0:01:39]} h5 {[%emt 0:00:43]} 30. Ra1 {[%emt 0:00:27]} f5 {[%emt 0:01:36]} 31. a3 {[%emt 0:00:26]} a5 {[%emt 0:00:29]} 32. axb4 {[%emt 0:00:06]} axb4 {[%emt 0:00:08]} 33. Ra6 {[%emt 0:01:26]} Rd6 {[%emt 0:00:59]} 34. Ra5 {[%emt 0:00:32]} Rc6 {[%emt 0:00:23]} 35. f4 {[%emt 0:01:04]} Rc7 {[%emt 0:01:45]} 36. Kd3 {[%emt 0:01:40]} Kd7 {[%emt 0:03:08]} 37. Nf3 {[%emt 0:00:56]} Kd6 {[%emt 0:01:58]} 38. Ng5 {[%emt 0:00:27]} Bd7 {[%emt 0:00:42]} 39. Ra6+ {[%emt 0:01:22]} Ke7 {[%emt 0:00:52]} 40. Nf3 {[%emt 0:05:22]} fxe4+ {[%emt 0:00:17]} 41. Kxe4 {[%emt 0:00:36]} Bc6+ {[%emt 0:00:07]} 42. Rxc6 {[%emt 0:00:20]} Rxc6 {[%emt 0:00:11]} 43. Kd5 {[%emt 0:00:02]} Rc8 {[%emt 0:00:36]} 44. Ne5 {[%emt 0:00:01]} Rc7 {[%emt 0:00:44]} 45. Nd3 {[%emt 0:01:14]} Rc8 {[%emt 0:00:50]} 46. Ne5 {[%emt 0:01:52]} Kf6 {[%emt 0:00:58]} 47. Nd3 {[%emt 0:01:25]} Kf5 {[%emt 0:00:19]} 48. Nf2 {[%emt 0:01:03]} g6 {[%emt 0:00:37]} 49. Kd6 {[%emt 0:00:39]} Kf6 {[%emt 0:00:57]} 50. Kd7 {[%emt 0:00:19]} Ra8 {[%emt 0:00:23]} 51. Ne4+ {[%emt 0:00:00]} Kf5 {[%emt 0:00:18]} 52. Nxc5 {[%emt 0:00:02]} Ra3 {[%emt 0:00:32]} 53. Kd6 {[%emt 0:00:11]} d3 {[%emt 0:00:25]} 54. Nxd3 {[%emt 0:00:06]} Rxb3 {[%emt 0:00:07]} 55. Nc5 {[%emt 0:01:10]} Rxg3 {[%emt 0:00:37]} 56. Na4 {[%emt 0:00:37]} b3 {[%emt 0:00:25]} 57. c5 {[%emt 0:00:12]} Rg2 {[%emt 0:01:01]} 58. c6 {[%emt 0:00:14]} b2 {[%emt 0:00:21]} 59. c7 {[%emt 0:00:13]} Rd2+ {[%emt 0:00:42]} 60. Kc6 {[%emt 0:00:11]} Rc2+ {[%emt 0:00:26]} 61. Nc5 {[%emt 0:00:05]} b1=Q {[%emt 0:00:26]} 62. c8=Q+ {[%emt 0:00:07]} Kxf4 {[%emt 0:00:20]} 63. Qf8+ {[%emt 0:02:55]} Kg4 {[%emt 0:00:26]} 64. Qe7 {[%emt 0:00:56]} Qh1+ {[%emt 0:00:27]} 65. Kc7 {[%emt 0:01:17]} Qc1 {[%emt 0:00:47]} 66. Qe6+ {[%emt 0:01:02]} Kxh4 {[%emt 0:00:39]} 67. Qe4+ {[%emt 0:00:09]} Kg3 {[%emt 0:00:27]} 68. Qxg6+ {[%emt 0:00:15]} Kf2 {[%emt 0:00:32]} 69. Qf5+ {[%emt 0:00:14]} Ke1 {[%emt 0:00:38]} 70. Qe4+ {[%emt 0:00:30]} Kd1 {[%emt 0:00:29]} 71. Qf3+ {[%emt 0:00:57]} Re2 {[%emt 0:00:31]} 72. Qxh5 {[%emt 0:01:43]} Qf4+ {[%emt 0:00:22]} 73. Kc6 {[%emt 0:01:31]} Qf6+ {[%emt 0:00:21]} 74. Kb5 {[%emt 0:00:24]} Qb2+ {[%emt 0:00:38]} 75. Kc6 {[%emt 0:00:03]} Qf6+ {[%emt 0:00:32]} 1/2-1/2

[Event "VIII Open Semana Santa-B 2024"]
[Site "San Vicente del Raspeig"]
[Date "2024.03.30"]
[Round "6.6"]
[White "Serna Puerto, Lorenzo"]
[Black "Garceran Perez, Alejandro"]
[Result "1/2-1/2"]
[ECO "C01"]
[WhiteElo "1825"]
[BlackElo "1661"]
[Annotator "NA RC"]
[PlyCount "129"]
[EventDate "2024.03.27"]
[EventType "swiss"]
[EventCountry "ESP"]
[SourceTitle "playchess.com"]
[Source "ChessBase"]
[SourceQuality "1"]
[TimeControl "5400+30"]

1. e4 {[%emt 0:00:03]} e6 {[%emt 0:00:10]} 2. d4 {[%emt 0:00:06]} d5 {[%emt 0:00:07]} 3. Bd3 {[%emt 0:00:05]} dxe4 {[%emt 0:00:12]} 4. Bxe4 {[%emt 0:00:08]} Nf6 {[%emt 0:00:28]} 5. Bf3 {[%emt 0:00:03]} c5 {[%emt 0:00:32]} 6. Ne2 {[%emt 0:00:09]} Nc6 {[%emt 0:00:18]} 7. Be3 {[%emt 0:00:38]} cxd4 {[%emt 0:00:51]} 8. Nxd4 {[%emt 0:00:54]} Ne5 {[%emt 0:00:18]} 9. O-O {[%emt 0:09:02]} Be7 {[%emt 0:01:34]} 10. Nc3 {[%emt 0:04:34]} O-O {[%emt 0:01:12]} 11. Qe2 {[%emt 0:00:21]} Nxf3+ {[%emt 0:00:26]} 12. Qxf3 {[%emt 0:00:46]} Qc7 {[%emt 0:06:37]} 13. Ndb5 {[%emt 0:06:00]} Qb8 {[%emt 0:00:56]} 14. Rfe1 {[%emt 0:11:15]} e5 {[%emt 0:02:28]} 15. Ne4 {[%emt 0:09:50]} Bd7 {[%emt 0:08:33]} 16. Nxf6+ {[%emt 0:02:39]} Bxf6 {[%emt 0:00:17]} 17. Qe2 {[%emt 0:01:10]} a6 {[%emt 0:02:25]} 18. Nc3 {[%emt 0:00:16]} Bc6 {[%emt 0:03:59]} 19. Bc5 {[%emt 0:01:21]} Rc8 {[%emt 0:04:16]} 20. Bb6 {[%emt 0:03:13]} e4 {[%emt 0:05:16]} 21. Nxe4 {[%emt 0:10:26]} Qe5 {[%emt 0:09:11]} 22. c3 {[%emt 0:07:47]} Bxe4 {[%emt 0:06:48]} 23. Qxe4 {[%emt 0:00:52]} Qb5 {[%emt 0:00:36]} 24. Bd4 {[%emt 0:08:24]} Bxd4 {[%emt 0:01:55]} 25. cxd4 {[%emt 0:00:16]} Re8 {[%emt 0:03:20]} 26. Qc2 {[%emt 0:03:15]} Qd5 {[%emt 0:03:12]} 27. Rxe8+ {[%emt 0:04:26]} Rxe8 {[%emt 0:00:13]} 28. Qc5 {[%emt 0:02:22]} Qxc5 {[%emt 0:21:54]} 29. dxc5 {[%emt 0:00:10]} Re2 {[%emt 0:01:54]} 30. b4 {[%emt 0:00:57]} Kf8 {[%emt 0:00:19]} 31. Kf1 {[%emt 0:01:07]} Rb2 {[%emt 0:00:20]} 32. a3 {[%emt 0:00:15]} Ke7 {[%emt 0:00:26]} 33. Rd1 {[%emt 0:03:38]} Rb3 {[%emt 0:00:41]} 34. Rd6 {[%emt 0:02:09]} Rxa3 {[%emt 0:01:18]} 35. Rb6 {[%emt 0:00:09]} Rb3 {[%emt 0:00:57]} 36. Rxb7+ {[%emt 0:00:20]} Ke6 {[%emt 0:00:15]} 37. Rb6+ {[%emt 0:01:02]} Ke7 {[%emt 0:00:59]} 38. Ke2 {[%emt 0:00:52]} Ra3 {[%emt 0:01:10]} 39. Rb7+ {[%emt 0:02:30]} Ke6 {[%emt 0:00:21]} 40. Kd2 {[%emt 0:00:45]} g5 {[%emt 0:00:59]} 41. Rb6+ {[%emt 0:01:51]} Ke5 {[%emt 0:00:43]} 42. c6 {[%emt 0:01:21]} Kd6 {[%emt 0:00:26]} 43. b5 {[%emt 0:00:43]} Rb3 {[%emt 0:01:58]} 44. Rxa6 {[%emt 0:00:50]} Rxb5 {[%emt 0:00:08]} 45. Ke3 {[%emt 0:00:57]} f5 {[%emt 0:01:46]} 46. g3 {[%emt 0:01:54]} Rb3+ {[%emt 0:01:09]} 47. Ke2 {[%emt 0:00:23]} f4 {[%emt 0:02:59]} 48. gxf4 {[%emt 0:00:46]} gxf4 {[%emt 0:00:11]} 49. c7+ {[%emt 0:00:16]} Kxc7 {[%emt 0:00:07]} 50. Rf6 {[%emt 0:00:10]} Rh3 {[%emt 0:00:25]} 51. Rxf4 {[%emt 0:00:48]} Rxh2 {[%emt 0:00:09]} 52. Rd4 {[%emt 0:00:12]} Rh6 {[%emt 0:00:32]} 53. Ke3 {[%emt 0:00:34]} Re6+ {[%emt 0:00:47]} 54. Kf3 {[%emt 0:00:17]} Rd6 {[%emt 0:00:46]} 55. Rh4 {[%emt 0:01:07]} h6 {[%emt 0:00:09]} 56. Ke4 {[%emt 0:00:25]} Kd7 {[%emt 0:00:27]} 57. f3 {[%emt 0:00:47]} Ke7 {[%emt 0:00:15]} 58. Rh5 {[%emt 0:00:31]} Kf7 {[%emt 0:00:22]} 59. Ke5 {[%emt 0:01:03]} Ra6 {[%emt 0:00:07]} 60. Kf4 {[%emt 0:00:22]} Kg6 {[%emt 0:00:18]} 61. Rd5 {[%emt 0:00:26]} Ra4+ {[%emt 0:00:15]} 62. Kg3 {[%emt 0:00:14]} Ra6 {[%emt 0:00:15]} 63. Kg4 {[%emt 0:00:23]} h5+ {[%emt 0:01:12]} 64. Kg3 {[%emt 0:00:41]} Rf6 {[%emt 0:00:05]} 65. Re5 {[%emt 0:00:12]} 1/2-1/2